[Event "FIDE World Rapid-ch Open 2018"]
[White "Van Foreest, Jorden"]
[Black "Tsydypov, Zhamsaran"]
[Site "St. Petersburg"]
[Round "6.59"]
[Annotator "ChessBase"]
[Result "0-1"]
[Date "2018.12.27"]
[WhiteElo "2614"]
[BlackElo "2529"]
[PlyCount "123"]
[TimeControl "900+10"]

1. e4 {[%emt 0:0:49]} c5 {[%emt 0:0:0]} 2. Nf3 {[%emt 0:0:5]} d6 {[%emt 0:0:0]} 3. d4 {[%emt 0:0:9]} cxd4 {[%emt 0:0:0]} 4. Nxd4 {[%emt 0:0:3]} Nf6 {[%emt 0:0:2]} 5. Nc3 {[%emt 0:0:2]} a6 {[%emt 0:0:1]} 6. Bc4 {[%emt 0:0:16]
} e6 {[%emt 0:0:27]} 7. Bb3 {[%emt 0:0:3]} Be7 {[%emt 0:0:26]
} 8. Be3 {[%emt 0:0:13]} Qc7 {[%emt 0:0:12]} 9. 0-0 {[%emt 0:0:55]} Nc6 {[%emt 0:0:51]
} 10. f4 {[%emt 0:0:4]} 0-0 {[%emt 0:0:38]} 11. f5 {[%emt 0:0:0]} e5 {[%emt 0:0:30]} 12. Nde2 {[%emt 0:0:44]} Na5 {[%emt 0:1:8]} 13. Nd5 {[%emt 0:1:12]} Nxd5 {[%emt 0:0:2]} 14. Bxd5 {[%emt 0:0:2]} Bd7 {[%emt 0:0:54]
} 15. Ng3 {[%emt 0:1:21]} Nc4 {[%emt 0:0:25]} 16. Bf2 {[%emt 0:0:0]} Rac8 {[%emt 0:2:57]} 17. Nh5 {[%emt 0:0:9]} Kh8 {[%emt 0:1:58]} 18. f6 {[%emt 0:2:5]} gxf6 {[%emt 0:0:13]} 19. Bh4 {[%emt 0:0:2]} Rg8 {[%emt 0:3:23]
} 20. Qf3 {[%emt 0:0:32]} Rg6 {[%emt 0:1:7]} 21. Nxf6 {[%emt 0:0:50]
} Be6 {[%emt 0:1:13]} 22. Qh5 {[%emt 0:3:57]} Bxf6 {[%emt 0:0:0]} 23. Bxf6+ {[%emt 0:1:0]} Kg8 {[%emt 0:0:1]} 24. Bxe6 {[%emt 0:2:10]} fxe6 {[%emt 0:0:1]} 25. Qh3 {[%emt 0:0:2]} Re8 {[%emt 0:0:48]} 26. Rf2 {[%emt 0:0:15]
} Qc5 {[%emt 0:0:12]} 27. Bh4 {[%emt 0:0:25]} Qd4 {[%emt 0:0:0]} 28. Qd3 {[%emt 0:0:16]} Ne3 {[%emt 0:0:21]} 29. h3 {[%emt 0:0:7]} Nxg2 {[%emt 0:0:14]} 30. Bg3 {[%emt 0:0:15]} Nf4 {[%emt 0:0:26]} 31. Qxd4 Rxg3+ {[%emt 0:0:2]
} 32. Kf1 {[%emt 0:0:5]} exd4 {[%emt 0:0:3]} 33. Rxf4 {[%emt 0:0:1]
} e5 {[%emt 0:0:7]} 34. Rf6 {[%emt 0:0:16]} Rf8 {[%emt 0:0:0]} 35. Kf2 {[%emt 0:0:2]} Rxf6+ {[%emt 0:0:15]} 36. Kxg3 {[%emt 0:0:2]} Rf4 {[%emt 0:0:11]} 37. Re1 {[%emt 0:0:3]} Kf7 {[%emt 0:0:7]} 38. c3 {[%emt 0:0:1]
} d3 {[%emt 0:1:8]} 39. Re3 {[%emt 0:0:27]} Ke6 {[%emt 0:0:0]} 40. Rxd3 {[%emt 0:0:1]} Rxe4 {[%emt 0:0:1]} 41. Kf2 {[%emt 0:0:1]} Ra4 {[%emt 0:0:19]} 42. a3 {[%emt 0:0:0]} Rf4+ {[%emt 0:0:1]} 43. Ke2 {[%emt 0:0:1]
} Rf6 {[%emt 0:0:4]} 44. c4 {[%emt 0:0:20]} Rf4 {[%emt 0:0:0]} 45. b3 {[%emt 0:0:3]} b5 {[%emt 0:0:18]} 46. Rc3 {[%emt 0:0:1]} bxc4 {[%emt 0:0:6]} 47. bxc4 {[%emt 0:0:1]} Rh4 {[%emt 0:0:27]} 48. c5 {[%emt 0:0:5]
} dxc5 {[%emt 0:0:9]} 49. Rxc5 {[%emt 0:0:0]} Rxh3 {[%emt 0:0:0]} 50. Ra5 {[%emt 0:0:3]} Kf5 {[%emt 0:0:2]} 51. Rxa6 {[%emt 0:0:2]} Kf4 {[%emt 0:0:5]} 52. a4 {[%emt 0:0:23]} Rh2+ {[%emt 0:0:5]} 53. Kd1 {[%emt 0:0:2]
} e4 {[%emt 0:0:14]} 54. a5 {[%emt 0:0:6]} Ke3 {[%emt 0:0:9]
} 55. Rd6 {[%emt 0:0:12]} Ra2 {[%emt 0:0:12]} 56. Rd5 {[%emt 0:0:1]} Kf3 {[%emt 0:0:20]
} 57. Rf5+ Ke3 58. Rh5 {[%emt 0:0:6]} Kd3 {[%emt 0:0:18]} 59. Rd5+ {[%emt 0:0:1]} Ke3 {[%emt 0:0:2]} 60. Rh5 {[%emt 0:0:1]} h6 {[%emt 0:0:25]
} 61. Rh3+ {[%emt 0:0:3]} Kd4 {[%emt 0:0:1]} 62. Rxh6 {[%emt 0:0:2]
} 0-1

[Event "FIDE World Rapid-ch Open 2018"]
[White "Levin, Evgeny A."]
[Black "Tang, Andrew"]
[Site "St. Petersburg"]
[Round "6.60"]
[Annotator "ChessBase"]
[Result "1-0"]
[Date "2018.12.27"]
[WhiteElo "2516"]
[BlackElo "2487"]
[PlyCount "108"]
[TimeControl "900+10"]

1. Nf3 {[%emt 0:3:43]} d5 {[%emt 0:0:0]} 2. g3 {[%emt 0:0:3]} Nf6 {[%emt 0:0:1]
} 3. Bg2 {[%emt 0:0:5]} e6 {[%emt 0:0:2]} 4. 0-0 {[%emt 0:0:0]} Be7 {[%emt 0:0:2]} 5. b3 {[%emt 0:0:4]} 0-0 {[%emt 0:0:4]} 6. c4 {[%emt 0:0:4]
} c5 {[%emt 0:0:3]} 7. cxd5 {[%emt 0:0:4]} Nxd5 {[%emt 0:0:0]} 8. Bb2 {[%emt 0:0:5]} b6 {[%emt 0:0:45]} 9. d4 {[%emt 0:0:21]} Bb7 {[%emt 0:0:32]
} 10. e4 {[%emt 0:0:26]} Nf6 {[%emt 0:0:10]} 11. Nbd2 {[%emt 0:0:0]} cxd4 {[%emt 0:3:44]} 12. e5 {[%emt 0:0:5]} Nd5 {[%emt 0:0:6]} 13. Nxd4 {[%emt 0:1:22]} Nc6 {[%emt 0:0:24]} 14. Ne4 {[%emt 0:2:15]} Rc8 {[%emt 0:3:22]
} 15. Nxc6 {[%emt 0:1:32]} Bxc6 {[%emt 0:0:2]} 16. Qg4 {[%emt 0:0:27]
} Kh8 {[%emt 0:3:36]} 17. Rfd1 {[%emt 0:0:25]} Rc7 {[%emt 0:0:0]} 18. Rac1 {[%emt 0:1:7]} Ba8 {[%emt 0:0:2]} 19. Nd6 {[%emt 0:0:49]} Rxc1 {[%emt 0:1:15]} 20. Rxc1 {[%emt 0:0:2]} Qd7 {[%emt 0:0:37]} 21. a4 {[%emt 0:1:0]
} Kg8 {[%emt 0:0:28]} 22. h4 {[%emt 0:0:16]} f5 {[%emt 0:0:47]
} 23. Qd4 {[%emt 0:1:46]} Nc7 {[%emt 0:1:16]} 24. Bxa8 {[%emt 0:1:3]} Rxa8 {[%emt 0:0:4]} 25. Nxf5 {[%emt 0:0:28]} Nd5 {[%emt 0:0:2]} 26. Nd6 {[%emt 0:0:43]
} Rf8 {[%emt 0:0:1]} 27. Ba3 {[%emt 0:0:8]} h6 {[%emt 0:0:0]} 28. Qd3 {[%emt 0:0:21]} Rd8 {[%emt 0:1:3]} 29. Qb5 {[%emt 0:0:17]} Qxb5 {[%emt 0:0:10]} 30. axb5 {[%emt 0:0:2]} Rd7 {[%emt 0:0:7]} 31. Rc8+ {[%emt 0:0:5]
} Kh7 {[%emt 0:0:1]} 32. h5 {[%emt 0:0:32]} g6 {[%emt 0:0:1]
} 33. hxg6+ {[%emt 0:0:7]} Kxg6 {[%emt 0:0:1]} 34. Rg8+ {[%emt 0:0:4]} Kh7 {[%emt 0:0:5]} 35. Rg4 {[%emt 0:0:24]} Nc3 {[%emt 0:0:41]} 36. Bb2 {[%emt 0:0:3]
} Bxd6 {[%emt 0:0:15]} 37. Bxc3 {[%emt 0:0:2]} Bc5 {[%emt 0:0:0]} 38. b4 {[%emt 0:0:12]} Be7 {[%emt 0:0:8]} 39. Rc4 {[%emt 0:0:3]} Kg6 {[%emt 0:0:4]} 40. g4 {[%emt 0:0:3]} Kf7 {[%emt 0:0:12]} 41. f4 {[%emt 0:0:4]
} Rd5 {[%emt 0:0:21]} 42. f5 {[%emt 0:0:1]} Rxb5 {[%emt 0:0:0]} 43. Rc7 {[%emt 0:0:56]} Ke8 {[%emt 0:0:1]} 44. f6 {[%emt 0:0:8]} Bxb4 {[%emt 0:0:2]} 45. Bxb4 {[%emt 0:0:9]} Rxb4 {[%emt 0:0:1]} 46. Rxa7 {[%emt 0:0:4]
} Rxg4+ {[%emt 0:0:5]} 47. Kf2 {[%emt 0:0:1]} b5 {[%emt 0:0:0]} 48. Re7+ {[%emt 0:0:4]} Kf8 {[%emt 0:0:2]} 49. Rxe6 {[%emt 0:0:8]} b4 {[%emt 0:0:2]} 50. Kf3 {[%emt 0:0:6]} Rc4 {[%emt 0:0:2]} 51. Rb6 {[%emt 0:0:18]
} Kf7 {[%emt 0:0:55]} 52. Rb7+ {[%emt 0:0:0]} Kg6 {[%emt 0:0:0]} 53. Rg7+ {[%emt 0:0:2]} Kf5 {[%emt 0:0:1]} 54. Re7 {[%emt 0:0:17]} Rc3+ {[%emt 0:0:50] Ke4+} 1-0

[Event "FIDE World Rapid-ch Open 2018"]
[White "Chen, Qi b"]
[Black "Tari, Aryan"]
[Site "St. Petersburg"]
[Round "6.61"]
[Annotator "ChessBase"]
[Result "0-1"]
[Date "2018.12.27"]
[WhiteElo "2437"]
[BlackElo "2620"]
[PlyCount "94"]
[TimeControl "900+10"]

1. e4 {[%emt 0:0:0]} e5 {[%emt 0:0:0]} 2. Nf3 {[%emt 0:0:0]} Nc6 {[%emt 0:0:0]
} 3. Bb5 {[%emt 0:0:0]} a6 {[%emt 0:0:0]} 4. Ba4 {[%emt 0:0:0]} Nge7 {[%emt 0:0:0]} 5. c3 {[%emt 0:0:38]} g6 {[%emt 0:0:7]} 6. 0-0 {[%emt 0:0:34]
} Bg7 {[%emt 0:0:3]} 7. d4 {[%emt 0:0:3]} exd4 {[%emt 0:0:0]} 8. cxd4 {[%emt 0:0:2]} b5 {[%emt 0:0:2]} 9. Bc2 {[%emt 0:0:6]} d5 {[%emt 0:0:29]
} 10. exd5 {[%emt 0:0:32]} Nxd5 {[%emt 0:0:2]} 11. Re1+ {[%emt 0:0:52]
} Be6 {[%emt 0:0:28]} 12. Nc3 {[%emt 0:0:20]} 0-0 {[%emt 0:0:0]} 13. h3 {[%emt 0:0:46]} Nxc3 {[%emt 0:2:4]} 14. bxc3 {[%emt 0:0:2]} Na5 15. Ne5 {[%emt 0:3:58]} Bd5 {[%emt 0:1:56]} 16. a4 {[%emt 0:0:28]} Re8 {[%emt 0:0:46]
} 17. Bf4 Qf6 {[%emt 0:2:12]} 18. Bg3 {[%emt 0:0:32]} Red8 {[%emt 0:0:59]
} 19. axb5 {[%emt 0:1:18]} axb5 {[%emt 0:0:2]} 20. Qe2 {[%emt 0:0:35]
} Qb6 {[%emt 0:0:43]} 21. Rab1 {[%emt 0:1:9]} Nc4 {[%emt 0:0:0]} 22. Bb3 {[%emt 0:2:2]} Qe6 {[%emt 0:1:16]} 23. Bxc4 {[%emt 0:0:46]} bxc4 {[%emt 0:0:4]} 24. Qd2 {[%emt 0:0:11]} Qa6 {[%emt 0:1:14]} 25. Ng4 {[%emt 0:0:36]
} h5 {[%emt 0:0:31]} 26. Ne3 {[%emt 0:0:37]} c5 {[%emt 0:0:34]
} 27. Be5 {[%emt 0:0:38]} Be4 {[%emt 0:1:2]} 28. Bxg7 Bxb1 {[%emt 0:1:6]} 29. Be5 {[%emt 0:0:52]} Bd3 {[%emt 0:0:32]} 30. dxc5 {[%emt 0:0:22]} f6 {[%emt 0:0:22]
} 31. Bd6 {[%emt 0:0:7]} Qc6 {[%emt 0:0:8]} 32. Nf1 {[%emt 0:0:0]} Re8 {[%emt 0:0:7]} 33. Ne3 {[%emt 0:0:32]} Re6 {[%emt 0:0:2]} 34. Rc1 {[%emt 0:0:10]} Kg7 {[%emt 0:0:12]} 35. Qb2 {[%emt 0:0:9]} g5 {[%emt 0:0:0]} 36. Qd2 {[%emt 0:0:20]} Kg6 {[%emt 0:0:6]} 37. Kh2 {[%emt 0:0:16]} f5 {[%emt 0:0:11]} 38. h4 {[%emt 0:0:24]} f4 {[%emt 0:0:7]} 39. Nc2 {[%emt 0:0:33]
} Re2 {[%emt 0:0:2]} 40. Nd4 {[%emt 0:0:1]} Rxd2 {[%emt 0:0:0]} 41. Nxc6 {[%emt 0:0:1]} Rxf2 {[%emt 0:0:2]} 42. Ne7+ {[%emt 0:0:21]} Kf7 {[%emt 0:0:9]} 43. hxg5 {[%emt 0:0:4]} Raa2 {[%emt 0:0:3]} 44. Rg1 {[%emt 0:0:1]
} f3 {[%emt 0:0:7]} 45. c6 {[%emt 0:0:21]} Rxg2+ {[%emt 0:0:0]} 46. Rxg2 {[%emt 0:0:2]} Rxg2+ {[%emt 0:0:2]} 47. Kh3 {[%emt 0:0:27]} f2 {[%emt 0:0:2]} 0-1

[Event "FIDE World Rapid-ch Open 2018"]
[White "Gaifullin, Artur"]
[Black "Goganov, Aleksey"]
[Site "St. Petersburg"]
[Round "6.62"]
[Annotator "ChessBase"]
[Result "0-1"]
[Date "2018.12.27"]
[WhiteElo "2448"]
[BlackElo "2612"]
[PlyCount "58"]
[TimeControl "900+10"]

1. Nf3 {[%emt 0:0:0]} d5 {[%emt 0:1:12]} 2. e3 {[%emt 0:0:0]} Nf6 {[%emt 0:0:2]
} 3. c4 {[%emt 0:0:0]} e6 {[%emt 0:0:2]} 4. b3 {[%emt 0:0:0]} Bd6 {[%emt 0:0:3]} 5. Bb2 {[%emt 0:0:1]} 0-0 {[%emt 0:0:3]} 6. Nc3 {[%emt 0:0:13]
} b6 {[%emt 0:0:6]} 7. Qc2 {[%emt 0:0:14]} Bb7 {[%emt 0:1:23]
} 8. cxd5 {[%emt 0:0:22]} exd5 {[%emt 0:0:2]} 9. Nb5 {[%emt 0:0:12]} c5 {[%emt 0:1:22]
} 10. Nxd6 {[%emt 0:1:42]} Qxd6 {[%emt 0:0:2]} 11. d4 {[%emt 0:1:10]
} Nbd7 {[%emt 0:1:29]} 12. dxc5 {[%emt 0:0:21]} bxc5 {[%emt 0:0:0]} 13. Be2 {[%emt 0:0:6]} Rac8 {[%emt 0:0:13]} 14. 0-0 {[%emt 0:0:7]} c4 {[%emt 0:3:58]} 15. Bd4 {[%emt 0:1:34]} Ba6 {[%emt 0:0:29]} 16. bxc4 {[%emt 0:0:1]
} Bxc4 {[%emt 0:0:8]} 17. Bxc4 {[%emt 0:0:1]} Rxc4 {[%emt 0:0:0]} 18. Qf5 {[%emt 0:0:36]} a6 {[%emt 0:0:56]} 19. Rab1 {[%emt 0:0:52]} h6 {[%emt 0:0:26]} 20. h3 {[%emt 0:4:16]} Rfc8 {[%emt 0:0:14]} 21. Rfd1 {[%emt 0:0:20]
} Qe6 {[%emt 0:0:4]} 22. Qd3 {[%emt 0:0:31]} Ne4 {[%emt 0:0:0]} 23. Bb2 {[%emt 0:1:51]} Ndc5 {[%emt 0:0:56]} 24. Qxd5 {[%emt 0:1:10]} Qxd5 {[%emt 0:0:6]} 25. Rxd5 {[%emt 0:0:1]} Rb8 {[%emt 0:0:22]} 26. Rc1 {[%emt 0:1:19]
} Rxc1+ {[%emt 0:0:3]} 27. Bxc1 {[%emt 0:0:1]} Rb1 {[%emt 0:0:0]} 28. Rd1 {[%emt 0:0:4]} Nc3 {[%emt 0:0:1]} 29. Nd2 {[%emt 0:1:10]} Rxc1 0-1

[Event "FIDE World Rapid-ch Open 2018"]
[White "Melkumyan, Hrant"]
[Black "Anikonov, Dmitry"]
[Site "St. Petersburg"]
[Round "6.63"]
[Annotator "ChessBase"]
[Result "1-0"]
[Date "2018.12.27"]
[WhiteElo "2670"]
[BlackElo "2371"]
[PlyCount "71"]
[TimeControl "900+10"]

1. e4 {[%emt 0:0:28]} d6 {[%emt 0:0:13]} 2. d4 {[%emt 0:0:5]} Nf6 {[%emt 0:0:0]} 3. Bd3 {[%emt 0:0:4]} e5 {[%emt 0:0:8]} 4. c3 {[%emt 0:0:2]} g6 {[%emt 0:0:13]
} 5. Nf3 {[%emt 0:0:4]} Nbd7 {[%emt 0:0:14]} 6. 0-0 {[%emt 0:0:0]} Bg7 {[%emt 0:0:3]} 7. Nbd2 {[%emt 0:0:25]} 0-0 {[%emt 0:0:7]} 8. Re1 {[%emt 0:0:3]} Re8 {[%emt 0:0:46]} 9. h3 {[%emt 0:0:48]} c6 {[%emt 0:0:0]} 10. a4 {[%emt 0:0:21]} Qc7 {[%emt 0:0:11]} 11. a5 {[%emt 0:0:22]} d5 {[%emt 0:2:28]} 12. exd5 {[%emt 0:0:14]} cxd5 {[%emt 0:0:39]} 13. dxe5 {[%emt 0:0:5]
} Nxe5 {[%emt 0:0:1]} 14. Nxe5 {[%emt 0:0:2]} Rxe5 {[%emt 0:0:0]} 15. Rxe5 {[%emt 0:0:2]} Qxe5 {[%emt 0:0:1]} 16. Nf3 {[%emt 0:0:2]
} Qc7 {[%emt 0:0:24]} 17. Be3 {[%emt 0:0:6]} Ne4 {[%emt 0:0:18]} 18. Bc2 {[%emt 0:1:38]
} Be6 {[%emt 0:0:24]} 19. Nd4 {[%emt 0:0:34]} Bd7 {[%emt 0:0:0]} 20. Ne2 {[%emt 0:0:21]} Bc6 {[%emt 0:0:49]} 21. Bd4 {[%emt 0:0:5]} Nd6 {[%emt 0:1:18]} 22. Bxg7 {[%emt 0:0:51]} Kxg7 {[%emt 0:0:1]} 23. Qd4+ {[%emt 0:0:6]
} Kg8 {[%emt 0:0:4]} 24. Bd3 {[%emt 0:0:2]} Re8 {[%emt 0:0:0]} 25. Nf4 {[%emt 0:1:17]} Nc4 {[%emt 0:0:18]} 26. b4 {[%emt 0:0:40]} Ne5 {[%emt 0:0:19]} 27. Be2 {[%emt 0:1:9]} a6 {[%emt 0:0:41]} 28. Rd1 {[%emt 0:0:0]} Qc8 {[%emt 0:1:25]} 29. Nxd5 {[%emt 0:1:18]} Bxd5 {[%emt 0:0:4]} 30. Qxd5 {[%emt 0:0:2]} Qxc3 {[%emt 0:0:17]} 31. Qxb7 {[%emt 0:0:3]} Nc6 {[%emt 0:0:30]
} 32. Qxa6 {[%emt 0:1:9]} Nxb4 {[%emt 0:2:34]} 33. Qc4 {[%emt 0:0:44]
} Qb2 {[%emt 0:0:42]} 34. Rd7 {[%emt 0:0:23]} Rf8 {[%emt 0:0:0]} 35. Rb7 {[%emt 0:0:32]} Qa1+ {[%emt 0:0:11]} 36. Bf1 {[%emt 0:0:2]} 1-0

[Event "FIDE World Rapid-ch Open 2018"]
[White "Jones, Gawain C B"]
[Black "Nozdrachev, Vladislav"]
[Site "St. Petersburg"]
[Round "6.64"]
[Annotator "ChessBase"]
[Result "0-1"]
[Date "2018.12.27"]
[WhiteElo "2682"]
[BlackElo "2486"]
[PlyCount "100"]
[TimeControl "900+10"]

1. e4 {[%emt 0:0:0]} e5 {[%emt 0:0:0]} 2. Nf3 {[%emt 0:0:0]} Nc6 {[%emt 0:0:0]
} 3. Bc4 {[%emt 0:0:0]} Bc5 {[%emt 0:0:0]} 4. c3 {[%emt 0:0:0]} Nf6 {[%emt 0:0:0]} 5. d4 {[%emt 0:0:1]} exd4 {[%emt 0:0:0]} 6. e5 {[%emt 0:0:2]
} d5 {[%emt 0:0:2]} 7. Bb5 {[%emt 0:0:3]} Ne4 {[%emt 0:0:3]
} 8. cxd4 {[%emt 0:0:3]} Bb6 {[%emt 0:0:2]} 9. Nc3 {[%emt 0:0:10]} 0-0 {[%emt 0:0:23]
} 10. Be3 {[%emt 0:0:3]} Bf5 {[%emt 0:2:18]} 11. 0-0 {[%emt 0:0:0]} Ne7 {[%emt 0:0:23]} 12. Nh4 {[%emt 0:0:36]} Be6 {[%emt 0:0:25]} 13. Bd3 {[%emt 0:1:32]} f5 {[%emt 0:0:46]} 14. exf6 {[%emt 0:0:20]} Nxf6 {[%emt 0:0:5]
} 15. Qc2 {[%emt 0:0:40]} Nc6 {[%emt 0:0:55]} 16. Nf3 {[%emt 0:0:0]} Nb4 {[%emt 0:0:7]} 17. Qd2 {[%emt 0:0:14]} Nxd3 {[%emt 0:0:6]} 18. Qxd3 {[%emt 0:0:3]} c6 {[%emt 0:1:28]} 19. Bf4 {[%emt 0:0:48]} Nh5 {[%emt 0:0:45]
} 20. Be5 {[%emt 0:0:23]} Bg4 {[%emt 0:0:16]} 21. Nd2 {[%emt 0:0:0]} Qg5 {[%emt 0:0:15]} 22. Qe3 {[%emt 0:0:44]} Qg6 {[%emt 0:0:18]} 23. f3 {[%emt 0:0:55]} Bf5 {[%emt 0:0:42]} 24. Kh1 {[%emt 0:0:12]} Bd3 {[%emt 0:0:0]} 25. Rfe1 {[%emt 0:1:16]} Rae8 {[%emt 0:1:16]} 26. Na4 {[%emt 0:0:1]
} Ba5 {[%emt 0:1:10]} 27. Nc5 {[%emt 0:0:19]} Bc2 {[%emt 0:1:18]} 28. Nxb7 {[%emt 0:0:6]
} Nf4 {[%emt 0:0:41]} 29. Qxf4 {[%emt 0:1:21]} Rxf4 {[%emt 0:0:0]} 30. Bxf4 {[%emt 0:0:1]} Bb6 {[%emt 0:1:23]} 31. Nc5 {[%emt 0:0:3]} h6 {[%emt 0:0:2]} 32. Nf1 {[%emt 0:1:20]} Rxe1 {[%emt 0:0:27]} 33. Rxe1 {[%emt 0:0:1]
} Bxc5 {[%emt 0:0:6]} 34. dxc5 {[%emt 0:0:1]} d4 {[%emt 0:0:0]} 35. Nd2 {[%emt 0:0:49]} Qf5 {[%emt 0:0:22]} 36. Be5 {[%emt 0:0:11]} Qd3 {[%emt 0:0:2]} 37. Ne4 {[%emt 0:0:11]} Qc4 {[%emt 0:0:18]} 38. b3 {[%emt 0:0:0]} Qd5 {[%emt 0:0:1]} 39. Bd6 {[%emt 0:0:3]} Bxe4 {[%emt 0:0:17]} 40. fxe4 {[%emt 0:0:3]} Qg5 {[%emt 0:0:1]} 41. Kg1 {[%emt 0:1:1]} d3 {[%emt 0:0:14]
} 42. e5 {[%emt 0:0:37]} Qd2 {[%emt 0:0:38]} 43. Kf1 {[%emt 0:0:0]} Qc2 {[%emt 0:0:14]} 44. e6 {[%emt 0:0:22]} d2 {[%emt 0:0:2]} 45. e7 {[%emt 0:0:1]} dxe1=Q+ {[%emt 0:0:11]} 46. Kxe1 {[%emt 0:0:1]} Kf7 {[%emt 0:0:2]
} 47. b4 {[%emt 0:0:15]} Ke8 {[%emt 0:0:2]} 48. a3 {[%emt 0:0:0]} Qc3+ {[%emt 0:0:7]} 49. Ke2 {[%emt 0:0:2]} Qxa3 {[%emt 0:0:1]} 50. b5 {[%emt 0:0:1]} Qb2+ {[%emt 0:0:1]} 0-1

[Event "FIDE World Rapid-ch Open 2018"]
[White "Oganian, Miran"]
[Black "Paravyan, David"]
[Site "St. Petersburg"]
[Round "6.65"]
[Annotator "ChessBase"]
[Result "0-1"]
[Date "2018.12.27"]
[WhiteElo "2423"]
[BlackElo "2634"]
[PlyCount "158"]
[TimeControl "900+10"]

1. d4 {[%emt 0:0:0]} Nf6 {[%emt 0:0:0]} 2. c4 {[%emt 0:0:0]} g6 {[%emt 0:0:0]} 3. Nc3 {[%emt 0:0:0]} Bg7 {[%emt 0:0:4]} 4. Nf3 {[%emt 0:1:0]} 0-0 {[%emt 0:0:1]} 5. Bf4 {[%emt 0:0:1]} d6 {[%emt 0:0:30]} 6. h3 {[%emt 0:0:25]
} Nc6 {[%emt 0:0:3]} 7. e3 {[%emt 0:0:24]} Qe8 {[%emt 0:0:15]
} 8. Be2 {[%emt 0:0:32]} e5 {[%emt 0:0:1]} 9. Bh2 {[%emt 0:0:9]} Bf5 {[%emt 0:1:23]
} 10. 0-0 {[%emt 0:2:7]} e4 {[%emt 0:1:24]} 11. Nd2 {[%emt 0:0:0]} g5 {[%emt 0:0:42]} 12. Rc1 {[%emt 0:0:14]} Bg6 {[%emt 0:1:31]} 13. Nd5 {[%emt 0:0:13]} Rc8 {[%emt 0:0:29]} 14. Qb3 {[%emt 0:1:53]} b6 {[%emt 0:0:0]} 15. Nxf6+ {[%emt 0:0:33]} Bxf6 {[%emt 0:0:2]} 16. c5 {[%emt 0:1:36]
} bxc5 {[%emt 0:0:28]} 17. dxc5 Rb8 18. Qd1 {[%emt 0:2:45]} Bxb2 {[%emt 0:0:0]} 19. cxd6 {[%emt 0:0:30]} cxd6 {[%emt 0:0:2]} 20. Bxd6 {[%emt 0:1:8]} Bxc1 {[%emt 0:0:2]} 21. Qxc1 {[%emt 0:0:10]} Rc8 {[%emt 0:0:2]} 22. Ba6 {[%emt 0:1:3]
} Qe6 {[%emt 0:0:46]} 23. Bxf8 {[%emt 0:0:43]} Rxf8 {[%emt 0:0:0]} 24. Qc4 {[%emt 0:1:47]} Qxc4 {[%emt 0:0:1]} 25. Nxc4 {[%emt 0:0:8]
} Nb4 {[%emt 0:0:2]} 26. Bb7 {[%emt 0:0:15]} Re8 {[%emt 0:1:39]} 27. a3 {[%emt 0:0:12]
} Nd3 {[%emt 0:0:4]} 28. Rb1 {[%emt 0:0:42]} Re7 {[%emt 0:0:0]} 29. Rb5 {[%emt 0:0:16]} Rc7 {[%emt 0:0:7]} 30. Bd5 {[%emt 0:0:9]} Kf8 {[%emt 0:1:17]} 31. Kf1 {[%emt 0:0:15]} h5 {[%emt 0:1:34]} 32. Ke2 {[%emt 0:0:0]} h4 {[%emt 0:0:3]} 33. Rb8+ {[%emt 0:0:24]} Kg7 {[%emt 0:0:18]} 34. Rb5 {[%emt 0:0:6]} Nc5 {[%emt 0:1:25]} 35. Ne5 {[%emt 0:0:15]} Na4 {[%emt 0:0:2]
} 36. Ra5 {[%emt 0:0:19]} Nc3+ {[%emt 0:0:41]} 37. Ke1 {[%emt 0:0:5]
} Nxd5 {[%emt 0:0:59]} 38. Rxd5 {[%emt 0:0:7]} Bf5 {[%emt 0:0:0]} 39. Ng4 {[%emt 0:0:13]} Kg6 {[%emt 0:0:10]} 40. Rd6+ {[%emt 0:0:7]} Be6 {[%emt 0:0:1]} 41. Ne5+ {[%emt 0:0:8]} Kg7 {[%emt 0:0:21]} 42. Nc6 {[%emt 0:0:5]
} Rb7 {[%emt 0:0:5]} 43. Nd8 {[%emt 0:0:15]} Rb1+ {[%emt 0:0:0]} 44. Kd2 {[%emt 0:0:6]} Rb2+ {[%emt 0:0:7]} 45. Ke1 {[%emt 0:0:21]} Bc4 {[%emt 0:0:0]} 46. Rd4 {[%emt 0:0:12]} Bd3 {[%emt 0:0:25]} 47. Rd7 {[%emt 0:0:12]
} Re2+ {[%emt 0:0:11]} 48. Kf1 {[%emt 0:0:1]} Rxe3+ {[%emt 0:0:0]} 49. Kg1 {[%emt 0:0:1]} Re1+ 50. Kh2 Bc4 {[%emt 0:0:18]} 51. Rxa7 {[%emt 0:0:23]
} Re2 {[%emt 0:0:32]} 52. Rc7 {[%emt 0:0:7]} Bb3 {[%emt 0:0:0]} 53. Kg1 {[%emt 0:0:6]} Re1+ {[%emt 0:0:1]} 54. Kh2 {[%emt 0:0:1]} Ra1 {[%emt 0:0:22]} 55. Ra7 {[%emt 0:0:32]} Ra2 {[%emt 0:0:5]} 56. Kg1 {[%emt 0:0:1]
} Ra1+ {[%emt 0:0:1]} 57. Kh2 {[%emt 0:0:1]} Ra2 {[%emt 0:0:0]} 58. Kg1 {[%emt 0:0:1]} Kg6 {[%emt 0:0:7]} 59. Nc6 {[%emt 0:0:10]} Ra1+ {[%emt 0:0:6]} 60. Kh2 {[%emt 0:0:1]} Rf1 {[%emt 0:0:11]} 61. Rb7 {[%emt 0:0:8]
} Be6 {[%emt 0:0:8]} 62. Rb2 {[%emt 0:0:18]} Ra1 {[%emt 0:0:0]} 63. Nd4 {[%emt 0:0:14]} Bc4 {[%emt 0:0:16]} 64. Nc2 {[%emt 0:0:26]} Rc1 {[%emt 0:0:8]} 65. Ne3 {[%emt 0:0:7]} Be6 {[%emt 0:0:2]} 66. Rc2 {[%emt 0:0:23]
} Ra1 {[%emt 0:0:4]} 67. Rc3 {[%emt 0:0:3]} f5 {[%emt 0:0:0]} 68. Rc6 {[%emt 0:0:2]} Kf6 {[%emt 0:0:11]} 69. Nc2 {[%emt 0:0:9]} Rc1 {[%emt 0:0:36]} 70. Nd4 {[%emt 0:0:2]} Rxc6 71. Nxc6 Bd7 {[%emt 0:0:6]} 72. Nb4 {[%emt 0:0:22]} Ke5 {[%emt 0:0:6]} 73. Kg1 {[%emt 0:0:17]} Bb5 {[%emt 0:0:5]
} 74. Nc2 {[%emt 0:0:8]} f4 {[%emt 0:0:1]} 75. g3 {[%emt 0:0:0]} hxg3 {[%emt 0:0:2]} 76. fxg3 {[%emt 0:0:0]} e3 {[%emt 0:0:6]} 77. h4 {[%emt 0:0:21]} Ke4 {[%emt 0:0:1]} 78. gxf4 {[%emt 0:0:14]} gxf4 {[%emt 0:0:1]
} 79. h5 {[%emt 0:0:8]} f3 {[%emt 0:0:1]} 0-1

[Event "FIDE World Rapid-ch Open 2018"]
[White "Gordievsky, Dmitry"]
[Black "Lintchevski, Daniil"]
[Site "St. Petersburg"]
[Round "6.66"]
[Annotator "ChessBase"]
[Result "1/2-1/2"]
[Date "2018.12.27"]
[WhiteElo "2614"]
[BlackElo "2516"]
[PlyCount "86"]
[TimeControl "900+10"]

1. Nf3 {[%emt 0:0:0]} c5 {[%emt 0:1:17]} 2. c4 {[%emt 0:0:5]} Nc6 {[%emt 0:0:2]
} 3. d4 {[%emt 0:0:11]} cxd4 {[%emt 0:0:5]} 4. Nxd4 {[%emt 0:0:0]} g6 {[%emt 0:0:15]} 5. e4 {[%emt 0:0:2]} Nf6 {[%emt 0:0:7]} 6. Nc3 {[%emt 0:0:1]} d6 {[%emt 0:0:2]} 7. f3 {[%emt 0:0:7]} Bg7 {[%emt 0:0:10]
} 8. Be3 {[%emt 0:0:3]} 0-0 {[%emt 0:0:6]} 9. Qd2 {[%emt 0:0:43]} Nxd4 {[%emt 0:0:5]
} 10. Bxd4 {[%emt 0:0:10]} Be6 {[%emt 0:0:19]} 11. Rc1 {[%emt 0:0:50]
} Rc8 {[%emt 0:0:58]} 12. b3 {[%emt 0:0:35]} a6 {[%emt 0:0:9]
} 13. Be2 {[%emt 0:2:30]} Qa5 {[%emt 0:0:3]} 14. Be3 {[%emt 0:2:34]} b5 {[%emt 0:2:40]
} 15. Nd5 {[%emt 0:0:14]} Qxd2+ {[%emt 0:0:14]} 16. Kxd2 {[%emt 0:0:20]
} Nxd5 {[%emt 0:0:2]} 17. exd5 {[%emt 0:4:33]} Bd7 {[%emt 0:0:0]} 18. cxb5 {[%emt 0:0:5]} axb5 {[%emt 0:0:8]} 19. Rxc8 {[%emt 0:0:0]} Rxc8 {[%emt 0:0:1]} 20. Rc1 {[%emt 0:0:1]} Ra8 {[%emt 0:0:29]} 21. Rc7 {[%emt 0:1:5]} Be8 {[%emt 0:0:24]} 22. Ra7 {[%emt 0:2:7]} Rxa7 {[%emt 0:0:1]
} 23. Bxa7 {[%emt 0:0:1]} Kf8 {[%emt 0:0:1]} 24. Bd1 {[%emt 0:1:2]
} e6 {[%emt 0:0:14]} 25. dxe6 {[%emt 0:0:11]} fxe6 26. a4 bxa4 {[%emt 0:0:22]} 27. bxa4 {[%emt 0:0:1]} Ke7 {[%emt 0:0:1]} 28. a5 {[%emt 0:0:6]
} Bb5 {[%emt 0:0:1]} 29. Be3 {[%emt 0:0:45]} Kd7 {[%emt 0:0:0]} 30. Bc2 {[%emt 0:0:38]} Bf6 {[%emt 0:0:53]} 31. Bd3 {[%emt 0:0:9]} Bc6 {[%emt 0:1:22]} 32. a6 {[%emt 0:0:17]} Kc7 {[%emt 0:0:1]} 33. Ke2 {[%emt 0:0:0]} e5 {[%emt 0:0:20]} 34. g4 {[%emt 0:0:2]} d5 {[%emt 0:0:5]} 35. g5 {[%emt 0:0:22]} Be7 {[%emt 0:0:16]} 36. h4 {[%emt 0:0:2]} Bb4 {[%emt 0:0:0]} 37. Bd2 {[%emt 0:0:30]} Bc5 {[%emt 0:0:18]} 38. Ba5+ {[%emt 0:0:2]} Kd7 {[%emt 0:0:19]} 39. Bc3 {[%emt 0:0:8]} Kd6 {[%emt 0:0:10]} 40. Bd2 {[%emt 0:0:20]
} Kc7 {[%emt 0:0:1]} 41. Ba5+ {[%emt 0:0:9]} Kd7 {[%emt 0:0:0]} 42. Be1 {[%emt 0:0:2]} Kc7 {[%emt 0:0:18]} 43. Ba5+ {[%emt 0:0:20]} Kd7 {[%emt 0:0:1]} 1/2-1/2